[Event "Early-Titled-Tuesday-Blitz-January-30-2024"]
[Site "Chess.com"]
[Date "2024.01.30"]
[Round "6"]
[White "cycygogne"]
[Black "Bushonica"]
[Result "1-0"]
[WhiteElo "2282"]
[BlackElo "1824"]
[TimeControl "180+1"]
[EndTime "9:07:37 PST"]
[Termination "cycygogne won by resignation"]

1. Nf3 {[%clk 0:02:49.1]} 1... d5 {[%clk 0:02:56.6]} 2. b3 {[%clk 0:02:48.6]}
2... Nf6 {[%clk 0:02:53.4]} 3. Bb2 {[%clk 0:02:48.1]} 3... e6 {[%clk 0:02:53.5]}
4. e3 {[%clk 0:02:48.5]} 4... c5 {[%clk 0:02:52.2]} 5. Bb5+ {[%clk 0:02:46.9]}
5... Bd7 {[%clk 0:02:51.9]} 6. Be2 {[%clk 0:02:43]} 6... Be7 {[%clk 0:02:51.7]}
7. O-O {[%clk 0:02:43.1]} 7... O-O {[%clk 0:02:50.7]} 8. Ne5 {[%clk 0:02:43.1]}
8... Nc6 {[%clk 0:02:50.3]} 9. f4 {[%clk 0:02:43]} 9... a6 {[%clk 0:02:49]} 10.
d3 {[%clk 0:02:41.4]} 10... b5 {[%clk 0:02:48.2]} 11. Nd2 {[%clk 0:02:39.6]}
11... Qc7 {[%clk 0:02:44.2]} 12. Ndf3 {[%clk 0:02:38.3]} 12... a5 {[%clk
0:02:38.5]} 13. Nxc6 {[%clk 0:02:35.4]} 13... Bxc6 {[%clk 0:02:34]} 14. Ne5
{[%clk 0:02:35.5]} 14... Bb7 {[%clk 0:02:22.9]} 15. c4 {[%clk 0:02:31]} 15...
dxc4 {[%clk 0:02:21.5]} 16. dxc4 {[%clk 0:02:29.3]} 16... b4 {[%clk 0:02:17.6]}
17. Bf3 {[%clk 0:02:27.7]} 17... Rad8 {[%clk 0:02:02.8]} 18. Qe2 {[%clk
0:02:27.2]} 18... Bxf3 {[%clk 0:01:49.7]} 19. Qxf3 {[%clk 0:02:08.1]} 19... Rd2
{[%clk 0:01:47.2]} 20. Rf2 {[%clk 0:02:08.5]} 20... Rfd8 {[%clk 0:01:46.6]} 21.
Nc6 {[%clk 0:01:57.7]} 21... Rxf2 {[%clk 0:01:45.8]} 22. Nxe7+ {[%clk
0:01:57.6]} 22... Qxe7 {[%clk 0:01:44.9]} 23. Qxf2 {[%clk 0:01:57.9]} 23... Ne4
{[%clk 0:01:44.8]} 24. Qf3 {[%clk 0:01:53.1]} 24... f5 {[%clk 0:01:44.6]} 25.
Rd1 {[%clk 0:01:48.8]} 25... Rd7 {[%clk 0:01:30.7]} 26. h3 {[%clk 0:01:27.2]}
26... Qd8 {[%clk 0:01:28.5]} 27. Rxd7 {[%clk 0:01:25.1]} 27... Qxd7 {[%clk
0:01:27.4]} 28. Be5 {[%clk 0:01:17.4]} 28... a4 {[%clk 0:01:15.2]} 29. Qh5
{[%clk 0:00:55.4]} 29... axb3 {[%clk 0:01:05.6]} 30. axb3 {[%clk 0:00:56.3]}
30... Nd2 {[%clk 0:01:05]} 31. Qd1 {[%clk 0:00:51.3]} 31... Qd3 {[%clk
0:01:03.9]} 32. Kh2 {[%clk 0:00:48.5]} 32... Qxe3 {[%clk 0:01:02.6]} 33. Qa1
{[%clk 0:00:45]} 33... Nxb3 {[%clk 0:00:57.9]} 34. Qa8+ {[%clk 0:00:44.7]} 34...
Kf7 {[%clk 0:00:57.7]} 35. Qb7+ {[%clk 0:00:44.3]} 35... Ke8 {[%clk 0:00:54.4]}
36. Qc8+ {[%clk 0:00:41.8]} 36... Kf7 {[%clk 0:00:53.1]} 37. Qd7+ {[%clk
0:00:41.5]} 1-0

[Event "Early-Titled-Tuesday-Blitz-January-30-2024"]
[Site "Chess.com"]
[Date "2024.01.30"]
[Round "6"]
[White "Njal28"]
[Black "Hongjin"]
[Result "1-0"]
[WhiteElo "3041"]
[BlackElo "2809"]
[TimeControl "180+1"]
[EndTime "9:07:39 PST"]
[Termination "Njal28 won by checkmate"]

1. d4 {[%clk 0:03:00.9]} 1... d5 {[%clk 0:02:59.4]} 2. c4 {[%clk 0:03:01.3]}
2... e6 {[%clk 0:02:59.8]} 3. Nf3 {[%clk 0:03:02]} 3... a6 {[%clk 0:02:59.6]} 4.
e3 {[%clk 0:03:01.7]} 4... Nf6 {[%clk 0:02:59.4]} 5. Nc3 {[%clk 0:03:02.3]} 5...
c5 {[%clk 0:02:59.9]} 6. a3 {[%clk 0:03:00.7]} 6... dxc4 {[%clk 0:02:58.8]} 7.
Bxc4 {[%clk 0:03:00.7]} 7... b5 {[%clk 0:02:59.3]} 8. Ba2 {[%clk 0:03:01]} 8...
Bb7 {[%clk 0:02:59.5]} 9. Qc2 {[%clk 0:02:58.5]} 9... Nbd7 {[%clk 0:02:59.2]}
10. O-O {[%clk 0:02:51.2]} 10... Be7 {[%clk 0:02:59.5]} 11. Rd1 {[%clk 0:02:50]}
11... Qc7 {[%clk 0:02:55]} 12. d5 {[%clk 0:02:35.8]} 12... exd5 {[%clk
0:02:51.5]} 13. Nxd5 {[%clk 0:02:34.5]} 13... Nxd5 {[%clk 0:02:51.7]} 14. Bxd5
{[%clk 0:02:35.4]} 14... Bxd5 {[%clk 0:02:51.8]} 15. Rxd5 {[%clk 0:02:36.3]}
15... Nf6 {[%clk 0:02:42.3]} 16. Rd1 {[%clk 0:02:26.6]} 16... O-O {[%clk
0:02:42.3]} 17. e4 {[%clk 0:02:20.6]} 17... Rfd8 {[%clk 0:02:36.4]} 18. Bg5
{[%clk 0:02:16.6]} 18... c4 {[%clk 0:02:34.3]} 19. e5 {[%clk 0:02:10.9]} 19...
Nd5 {[%clk 0:02:33.6]} 20. Qe4 {[%clk 0:02:10.6]} 20... Nb6 {[%clk 0:02:21.3]}
21. e6 {[%clk 0:01:59.3]} 21... f6 {[%clk 0:01:59.2]} 22. Bf4 {[%clk 0:01:55.1]}
22... Bd6 {[%clk 0:01:16.3]} 23. Be3 {[%clk 0:01:31.3]} 23... Re8 {[%clk
0:01:00.2]} 24. Rd2 {[%clk 0:01:10.9]} 24... Rad8 {[%clk 0:00:42.8]} 25. Rad1
{[%clk 0:01:06.5]} 25... Be7 {[%clk 0:00:38]} 26. Nh4 {[%clk 0:00:56.9]} 26...
Rxd2 {[%clk 0:00:32.2]} 27. Rxd2 {[%clk 0:00:57.8]} 27... Rd8 {[%clk 0:00:30.2]}
28. Nf5 {[%clk 0:00:54.6]} 28... Rxd2 {[%clk 0:00:24.2]} 29. Bxd2 {[%clk
0:00:55.5]} 29... g6 {[%clk 0:00:22.4]} 30. Qc6 {[%clk 0:00:55.7]} 30... Bd8
{[%clk 0:00:01.8]} 31. Qe8# {[%clk 0:00:55.5]} 1-0

[Event "Early-Titled-Tuesday-Blitz-January-30-2024"]
[Site "Chess.com"]
[Date "2024.01.30"]
[Round "6"]
[White "IngOscarArdila"]
[Black "tarno17"]
[Result "1-0"]
[WhiteElo "2325"]
[BlackElo "2063"]
[TimeControl "180+1"]
[EndTime "9:07:39 PST"]
[Termination "IngOscarArdila won on time"]

1. d4 {[%clk 0:02:57.9]} 1... d5 {[%clk 0:02:59.6]} 2. c4 {[%clk 0:02:58.1]}
2... e6 {[%clk 0:02:59.1]} 3. Nc3 {[%clk 0:02:58.1]} 3... Nf6 {[%clk 0:02:59.1]}
4. Bg5 {[%clk 0:02:57.8]} 4... Be7 {[%clk 0:02:59.3]} 5. Nf3 {[%clk 0:02:57.7]}
5... h6 {[%clk 0:02:59.4]} 6. Bh4 {[%clk 0:02:57.2]} 6... O-O {[%clk 0:02:58.5]}
7. e3 {[%clk 0:02:56.6]} 7... b6 {[%clk 0:02:57.7]} 8. cxd5 {[%clk 0:02:48.5]}
8... exd5 {[%clk 0:02:48.1]} 9. Bd3 {[%clk 0:02:47.5]} 9... Bb7 {[%clk 0:02:47]}
10. Ne5 {[%clk 0:02:43.5]} 10... Nbd7 {[%clk 0:02:38.9]} 11. f4 {[%clk
0:02:42.9]} 11... Ne4 {[%clk 0:02:26.1]} 12. Bxe7 {[%clk 0:02:37.8]} 12... Qxe7
{[%clk 0:02:23.3]} 13. Bxe4 {[%clk 0:02:37.4]} 13... dxe4 {[%clk 0:02:22.8]} 14.
O-O {[%clk 0:02:36.2]} 14... Nxe5 {[%clk 0:02:02.9]} 15. fxe5 {[%clk 0:02:35.5]}
15... Qg5 {[%clk 0:01:48.5]} 16. Rf4 {[%clk 0:02:32]} 16... f5 {[%clk
0:01:33.9]} 17. Qb3+ {[%clk 0:02:15.4]} 17... Kh7 {[%clk 0:01:22.1]} 18. Raf1
{[%clk 0:02:03.9]} 18... Rae8 {[%clk 0:01:02.8]} 19. Qc4 {[%clk 0:02:00.9]}
19... Re7 {[%clk 0:00:54.3]} 20. Nd5 {[%clk 0:01:18.2]} 20... Re6 {[%clk
0:00:28.6]} 21. Nxc7 {[%clk 0:01:14.9]} 21... Rg6 {[%clk 0:00:27.9]} 22. g3
{[%clk 0:01:07.7]} 22... Rc8 {[%clk 0:00:18.9]} 23. Qf7 {[%clk 0:01:04]} 23...
Ba6 {[%clk 0:00:15.7]} 24. Ne6 {[%clk 0:00:59]} 24... Qh5 {[%clk 0:00:02.3]} 25.
Rxf5 {[%clk 0:00:43]} 1-0

[Event "Early-Titled-Tuesday-Blitz-January-30-2024"]
[Site "Chess.com"]
[Date "2024.01.30"]
[Round "6"]
[White "Makswolf200817"]
[Black "yjjga"]
[Result "1-0"]
[WhiteElo "2676"]
[BlackElo "2457"]
[TimeControl "180+1"]
[EndTime "9:07:41 PST"]
[Termination "Makswolf200817 won on time"]

1. d4 {[%clk 0:03:00.9]} 1... d5 {[%clk 0:02:55.5]} 2. c4 {[%clk 0:03:00.6]}
2... c6 {[%clk 0:02:55.6]} 3. Nf3 {[%clk 0:03:00.1]} 3... Nf6 {[%clk 0:02:55.9]}
4. g3 {[%clk 0:03:00.7]} 4... Bf5 {[%clk 0:02:53.2]} 5. Nc3 {[%clk 0:03:00.3]}
5... e6 {[%clk 0:02:53.4]} 6. Nh4 {[%clk 0:03:01]} 6... Bg6 {[%clk 0:02:51.6]}
7. Nxg6 {[%clk 0:03:01]} 7... hxg6 {[%clk 0:02:52.5]} 8. Qd3 {[%clk 0:03:01.6]}
8... Nbd7 {[%clk 0:02:42.4]} 9. Bg2 {[%clk 0:03:01.9]} 9... Bd6 {[%clk
0:02:35.8]} 10. O-O {[%clk 0:03:02.1]} 10... Qe7 {[%clk 0:02:34.2]} 11. b3
{[%clk 0:02:49.8]} 11... Rd8 {[%clk 0:02:08.9]} 12. Bb2 {[%clk 0:02:46.5]} 12...
O-O {[%clk 0:02:07.6]} 13. Rad1 {[%clk 0:02:45.4]} 13... dxc4 {[%clk 0:01:47.9]}
14. Qxc4 {[%clk 0:02:39.6]} 14... Nb6 {[%clk 0:01:45.6]} 15. Qd3 {[%clk
0:02:39.1]} 15... e5 {[%clk 0:01:46]} 16. Ne4 {[%clk 0:02:33.7]} 16... Nxe4
{[%clk 0:01:35.6]} 17. Qxe4 {[%clk 0:02:33.5]} 17... exd4 {[%clk 0:01:36]} 18.
Qxd4 {[%clk 0:02:26.7]} 18... f6 {[%clk 0:01:24.2]} 19. Qg4 {[%clk 0:02:26.7]}
19... g5 {[%clk 0:01:22.5]} 20. Be4 {[%clk 0:02:23.6]} 20... Kf7 {[%clk
0:00:33.3]} 21. Qh5+ {[%clk 0:02:16.6]} 21... Ke6 {[%clk 0:00:33.8]} 22. Qh3+
{[%clk 0:01:41.3]} 22... Kf7 {[%clk 0:00:22.8]} 23. Bf5 {[%clk 0:01:35.1]} 23...
Rh8 {[%clk 0:00:22]} 24. Qg4 {[%clk 0:01:35]} 24... Rh6 {[%clk 0:00:18.1]} 25.
Kg2 {[%clk 0:01:30.8]} 25... Rdh8 {[%clk 0:00:16.5]} 26. Rh1 {[%clk 0:01:31.5]}
26... Nd5 {[%clk 0:00:13.9]} 27. e4 {[%clk 0:01:27.1]} 27... Nb6 {[%clk
0:00:12.5]} 28. Qf3 {[%clk 0:01:21.1]} 28... Be5 {[%clk 0:00:13]} 29. Bc1 {[%clk
0:01:20.1]} 29... g6 {[%clk 0:00:12.2]} 30. Bg4 {[%clk 0:01:19.9]} 30... Kg7
{[%clk 0:00:12.9]} 31. Be3 {[%clk 0:01:19.5]} 31... Rd8 {[%clk 0:00:09.3]} 32.
Rxd8 {[%clk 0:01:17.7]} 32... Qxd8 {[%clk 0:00:10.2]} 33. Rd1 {[%clk 0:01:17.7]}
33... Qh8 {[%clk 0:00:05.7]} 34. h3 {[%clk 0:01:17.8]} 34... Rh7 {[%clk
0:00:03.3]} 35. a4 {[%clk 0:01:11.4]} 35... Kh6 {[%clk 0:00:01.4]} 36. a5 {[%clk
0:01:11.6]} 36... Nc8 {[%clk 0:00:01.6]} 37. h4 {[%clk 0:01:12.3]} 1-0

[Event "Early-Titled-Tuesday-Blitz-January-30-2024"]
[Site "Chess.com"]
[Date "2024.01.30"]
[Round "6"]
[White "whiteglovethief"]
[Black "Ducke13"]
[Result "1/2-1/2"]
[WhiteElo "2495"]
[BlackElo "2297"]
[TimeControl "180+1"]
[EndTime "9:07:43 PST"]
[Termination "Game drawn - insufficient material"]

1. d4 {[%clk 0:03:00.9]} 1... Nf6 {[%clk 0:02:57.6]} 2. c4 {[%clk 0:02:58.7]}
2... g6 {[%clk 0:02:56.1]} 3. Nc3 {[%clk 0:02:57.5]} 3... d5 {[%clk 0:02:56.4]}
4. cxd5 {[%clk 0:02:57.2]} 4... Nxd5 {[%clk 0:02:56.9]} 5. Nf3 {[%clk
0:02:55.3]} 5... Bg7 {[%clk 0:02:56.6]} 6. g3 {[%clk 0:02:50.3]} 6... O-O {[%clk
0:02:44.4]} 7. Bg2 {[%clk 0:02:49.7]} 7... c5 {[%clk 0:02:42.7]} 8. O-O {[%clk
0:02:48.3]} 8... cxd4 {[%clk 0:02:37.5]} 9. Nxd4 {[%clk 0:02:49.2]} 9... Nxc3
{[%clk 0:02:33.4]} 10. bxc3 {[%clk 0:02:50.1]} 10... a6 {[%clk 0:02:14.8]} 11.
Rb1 {[%clk 0:02:41.9]} 11... Qc7 {[%clk 0:02:13.6]} 12. Qa4 {[%clk 0:02:31.6]}
12... Nd7 {[%clk 0:01:50.7]} 13. Bg5 {[%clk 0:02:19.8]} 13... Nc5 {[%clk
0:01:43.8]} 14. Qc4 {[%clk 0:02:16]} 14... h6 {[%clk 0:01:31.6]} 15. Bf4 {[%clk
0:01:55.6]} 15... e5 {[%clk 0:01:26.9]} 16. Nb3 {[%clk 0:01:56.1]} 16... exf4
{[%clk 0:01:08.7]} 17. Qxc5 {[%clk 0:01:56.2]} 17... Qxc5 {[%clk 0:01:06.1]} 18.
Nxc5 {[%clk 0:01:57.1]} 18... fxg3 {[%clk 0:01:06.2]} 19. hxg3 {[%clk
0:01:55.1]} 19... Bxc3 {[%clk 0:01:01.3]} 20. Rfc1 {[%clk 0:01:52.8]} 20... Bd4
{[%clk 0:00:44.5]} 21. e3 {[%clk 0:01:47.9]} 21... Bxc5 {[%clk 0:00:31.2]} 22.
Rxc5 {[%clk 0:01:48.8]} 22... Rb8 {[%clk 0:00:31.3]} 23. Rb6 {[%clk 0:01:49.1]}
23... Be6 {[%clk 0:00:26]} 24. a3 {[%clk 0:01:43.6]} 24... Rfc8 {[%clk
0:00:21.5]} 25. Rxc8+ {[%clk 0:01:43.4]} 25... Bxc8 {[%clk 0:00:20.6]} 26. Bf1
{[%clk 0:01:37.1]} 26... Ra8 {[%clk 0:00:17.4]} 27. Bg2 {[%clk 0:01:37]} 27...
Rb8 {[%clk 0:00:17.1]} 28. Bd5 {[%clk 0:01:36.4]} 28... Kf8 {[%clk 0:00:17]} 29.
a4 {[%clk 0:01:36.7]} 29... Ke7 {[%clk 0:00:17.3]} 30. a5 {[%clk 0:01:36.9]}
30... h5 {[%clk 0:00:14.8]} 31. f4 {[%clk 0:01:35.9]} 31... Be6 {[%clk
0:00:10.1]} 32. Bxb7 {[%clk 0:01:35.6]} 32... Bd7 {[%clk 0:00:03.6]} 33. Bxa6
{[%clk 0:01:34.7]} 33... Rxb6 {[%clk 0:00:02.8]} 34. axb6 {[%clk 0:01:34.3]}
34... Kd6 {[%clk 0:00:03.5]} 35. Bc4 {[%clk 0:01:29.3]} 35... Be8 {[%clk
0:00:02.8]} 36. b7 {[%clk 0:01:27.5]} 36... Kc7 {[%clk 0:00:03]} 37. Bd5 {[%clk
0:01:27.8]} 37... f6 {[%clk 0:00:01.6]} 38. e4 {[%clk 0:01:27.9]} 38... g5
{[%clk 0:00:01.9]} 39. fxg5 {[%clk 0:01:27.1]} 39... fxg5 {[%clk 0:00:02.8]} 40.
Kf2 {[%clk 0:01:26.8]} 40... h4 {[%clk 0:00:03.2]} 41. gxh4 {[%clk 0:01:26.9]}
41... gxh4 {[%clk 0:00:04.1]} 42. e5 {[%clk 0:01:24.2]} 42... Bd7 {[%clk
0:00:03.9]} 43. e6 {[%clk 0:01:24.6]} 43... Bxe6 {[%clk 0:00:04.4]} 44. Bxe6
{[%clk 0:01:21.7]} 44... Kxb7 {[%clk 0:00:04.7]} 45. Kg2 {[%clk 0:01:21.4]}
45... Kc7 {[%clk 0:00:05.6]} 46. Kh3 {[%clk 0:01:22.3]} 46... Kd6 {[%clk
0:00:06.4]} 47. Kxh4 {[%clk 0:01:22.7]} 1/2-1/2

[Event "Early-Titled-Tuesday-Blitz-January-30-2024"]
[Site "Chess.com"]
[Date "2024.01.30"]
[Round "6"]
[White "GoValya"]
[Black "stratacticos"]
[Result "1-0"]
[WhiteElo "2312"]
[BlackElo "2045"]
[TimeControl "180+1"]
[EndTime "9:07:44 PST"]
[Termination "GoValya won by resignation"]

1. d4 {[%clk 0:03:00.9]} 1... Nf6 {[%clk 0:02:59.4]} 2. g3 {[%clk 0:03:00.9]}
2... g6 {[%clk 0:02:58.6]} 3. Bg2 {[%clk 0:03:01.3]} 3... Bg7 {[%clk 0:02:58.4]}
4. c4 {[%clk 0:03:01.5]} 4... c5 {[%clk 0:02:58]} 5. d5 {[%clk 0:03:01.3]} 5...
b5 {[%clk 0:02:57.7]} 6. d6 {[%clk 0:02:56.8]} 6... Nc6 {[%clk 0:02:56.7]} 7.
cxb5 {[%clk 0:02:46.5]} 7... Qa5+ {[%clk 0:02:56.2]} 8. Nc3 {[%clk 0:02:46.8]}
8... Nd4 {[%clk 0:02:02.3]} 9. Bxa8 {[%clk 0:02:34]} 9... exd6 {[%clk 0:02:02]}
10. Bg2 {[%clk 0:02:22.7]} 10... O-O {[%clk 0:01:55]} 11. Nf3 {[%clk 0:02:22.4]}
11... Nxb5 {[%clk 0:01:54.2]} 12. Bd2 {[%clk 0:02:14.9]} 12... d5 {[%clk
0:01:49.1]} 13. Nxd5 {[%clk 0:02:01.6]} 13... Qd8 {[%clk 0:01:48.1]} 14. Nxf6+
{[%clk 0:02:00.9]} 14... Qxf6 {[%clk 0:01:47.4]} 15. O-O {[%clk 0:01:56.8]}
15... d5 {[%clk 0:01:45.9]} 16. Bg5 {[%clk 0:01:48.5]} 16... Qe6 {[%clk
0:01:35.9]} 17. Qc2 {[%clk 0:01:31.6]} 17... c4 {[%clk 0:01:25.5]} 18. a4 {[%clk
0:01:28.4]} 18... Nd6 {[%clk 0:01:21.9]} 19. Rad1 {[%clk 0:01:25.9]} 19... Ne4
{[%clk 0:01:20.8]} 20. Be3 {[%clk 0:01:23.9]} 20... Bb7 {[%clk 0:01:03.9]} 21.
Bd4 {[%clk 0:01:22.8]} 21... Qc6 {[%clk 0:01:00]} 22. Bxg7 {[%clk 0:01:22.2]}
22... Kxg7 {[%clk 0:00:59.1]} 23. Nd4 {[%clk 0:01:21.7]} 23... Qf6 {[%clk
0:00:52]} 24. Bxe4 {[%clk 0:01:20.1]} 24... dxe4 {[%clk 0:00:51.7]} 25. e3
{[%clk 0:01:20.5]} 25... Bd5 {[%clk 0:00:50.1]} 26. Qc3 {[%clk 0:01:10.4]} 26...
Kg8 {[%clk 0:00:46.6]} 27. Nb5 {[%clk 0:01:08.6]} 27... Qf5 {[%clk 0:00:33.3]}
28. Nd6 {[%clk 0:00:54.8]} 28... Qe6 {[%clk 0:00:31.9]} 29. Qd4 {[%clk
0:00:49.2]} 29... Qxd6 {[%clk 0:00:22.3]} 30. Qxd5 {[%clk 0:00:49.3]} 30... Qb4
{[%clk 0:00:23.2]} 31. Qxe4 {[%clk 0:00:47.3]} 31... Qxb2 {[%clk 0:00:22.9]} 32.
Qxc4 {[%clk 0:00:46.5]} 1-0

[Event "Early-Titled-Tuesday-Blitz-January-30-2024"]
[Site "Chess.com"]
[Date "2024.01.30"]
[Round "6"]
[White "RantomOpening"]
[Black "ilushka"]
[Result "1-0"]
[WhiteElo "2512"]
[BlackElo "2342"]
[TimeControl "180+1"]
[EndTime "9:07:47 PST"]
[Termination "RantomOpening won by checkmate"]

1. e4 {[%clk 0:02:55.4]} 1... e5 {[%clk 0:03:00.2]} 2. Nf3 {[%clk 0:02:55.5]}
2... Nc6 {[%clk 0:03:00.6]} 3. c3 {[%clk 0:02:55.9]} 3... Nf6 {[%clk 0:03:00.5]}
4. d4 {[%clk 0:02:56.1]} 4... d5 {[%clk 0:02:55.2]} 5. Nxe5 {[%clk 0:02:51.4]}
5... Nxe5 {[%clk 0:02:53.9]} 6. dxe5 {[%clk 0:02:52.3]} 6... Nxe4 {[%clk
0:02:54]} 7. Bd3 {[%clk 0:02:51.9]} 7... Bc5 {[%clk 0:02:45.2]} 8. O-O {[%clk
0:02:45.6]} 8... O-O {[%clk 0:02:41.9]} 9. Nd2 {[%clk 0:02:44.1]} 9... f5 {[%clk
0:02:38.6]} 10. Nf3 {[%clk 0:02:43.4]} 10... Be6 {[%clk 0:02:35.7]} 11. Qe2
{[%clk 0:02:41]} 11... c6 {[%clk 0:02:30.5]} 12. Nd4 {[%clk 0:02:36.9]} 12...
Re8 {[%clk 0:02:12.4]} 13. Be3 {[%clk 0:02:30.5]} 13... Bb6 {[%clk 0:02:09.8]}
14. f3 {[%clk 0:02:16.7]} 14... Nc5 {[%clk 0:02:09.7]} 15. Bc2 {[%clk
0:02:14.2]} 15... g6 {[%clk 0:02:02.6]} 16. f4 {[%clk 0:02:12.8]} 16... Ne4
{[%clk 0:02:01.8]} 17. Rad1 {[%clk 0:02:11.1]} 17... Qd7 {[%clk 0:01:59.2]} 18.
Nf3 {[%clk 0:01:58]} 18... Qc7 {[%clk 0:01:51.3]} 19. Kh1 {[%clk 0:01:55]} 19...
Bxe3 {[%clk 0:01:50.4]} 20. Qxe3 {[%clk 0:01:55.2]} 20... Qb6 {[%clk 0:01:50.8]}
21. Qxb6 {[%clk 0:01:55.4]} 21... axb6 {[%clk 0:01:51.7]} 22. a3 {[%clk
0:01:55.3]} 22... b5 {[%clk 0:01:50.5]} 23. Bxe4 {[%clk 0:01:54.8]} 23... dxe4
{[%clk 0:01:47.5]} 24. Nd4 {[%clk 0:01:43.6]} 24... Bd5 {[%clk 0:01:43.3]} 25.
Kg1 {[%clk 0:01:43.1]} 25... Red8 {[%clk 0:01:37.4]} 26. Kf2 {[%clk 0:01:43]}
26... c5 {[%clk 0:01:31.6]} 27. Nxb5 {[%clk 0:01:29]} 27... Bc4 {[%clk
0:01:31.2]} 28. Nd6 {[%clk 0:01:29.5]} 28... Bxf1 {[%clk 0:01:30]} 29. Kxf1
{[%clk 0:01:30.4]} 29... Kf8 {[%clk 0:01:24.9]} 30. Ke2 {[%clk 0:01:28.6]} 30...
Ke7 {[%clk 0:01:22.1]} 31. g4 {[%clk 0:01:20.9]} 31... Ke6 {[%clk 0:00:56.8]}
32. g5 {[%clk 0:01:18]} 32... Ra6 {[%clk 0:00:33.5]} 33. Rh1 {[%clk 0:01:15.5]}
33... Rb6 {[%clk 0:00:24.4]} 34. Nc4 {[%clk 0:01:15.8]} 34... Rb3 {[%clk
0:00:20.8]} 35. Rb1 {[%clk 0:01:12.7]} 35... Rd3 {[%clk 0:00:17.8]} 36. Nd2
{[%clk 0:01:12.9]} 36... Rdxc3 {[%clk 0:00:15.1]} 37. bxc3 {[%clk 0:01:12.5]}
37... Rxc3 {[%clk 0:00:06.3]} 38. Rb6+ {[%clk 0:01:10]} 38... Kd5 {[%clk
0:00:05.8]} 39. Rd6# {[%clk 0:01:10.4]} 1-0

[Event "Early-Titled-Tuesday-Blitz-January-30-2024"]
[Site "Chess.com"]
[Date "2024.01.30"]
[Round "6"]
[White "Kostya0705"]
[Black "Alex_Sahakyan2006"]
[Result "1-0"]
[WhiteElo "2605"]
[BlackElo "2867"]
[TimeControl "180+1"]
[EndTime "9:07:52 PST"]
[Termination "Kostya0705 won on time"]

1. e4 {[%clk 0:03:00.9]} 1... e5 {[%clk 0:02:59]} 2. Nf3 {[%clk 0:03:01.2]} 2...
Nc6 {[%clk 0:02:58.9]} 3. Bc4 {[%clk 0:03:01.8]} 3... Nf6 {[%clk 0:02:58.9]} 4.
d3 {[%clk 0:03:02.1]} 4... Bc5 {[%clk 0:02:57.9]} 5. O-O {[%clk 0:03:01.3]} 5...
d6 {[%clk 0:02:56]} 6. c3 {[%clk 0:03:01.9]} 6... a6 {[%clk 0:02:46.4]} 7. Bb3
{[%clk 0:03:01.3]} 7... Ba7 {[%clk 0:02:46.1]} 8. Nbd2 {[%clk 0:02:59.8]} 8...
h6 {[%clk 0:02:46.3]} 9. Re1 {[%clk 0:02:59.7]} 9... g5 {[%clk 0:02:46.5]} 10.
Nf1 {[%clk 0:03:00.2]} 10... g4 {[%clk 0:02:43.4]} 11. N3d2 {[%clk 0:02:57.9]}
11... h5 {[%clk 0:02:43.7]} 12. Nc4 {[%clk 0:02:57.4]} 12... h4 {[%clk
0:02:42.7]} 13. Be3 {[%clk 0:02:57.7]} 13... Bxe3 {[%clk 0:02:01]} 14. Ncxe3
{[%clk 0:02:58.6]} 14... Qe7 {[%clk 0:01:56.9]} 15. d4 {[%clk 0:02:54.8]} 15...
Bd7 {[%clk 0:01:23.2]} 16. Nd5 {[%clk 0:02:48.5]} 16... Nxd5 {[%clk 0:01:18.8]}
17. exd5 {[%clk 0:02:48.2]} 17... Na7 {[%clk 0:01:19]} 18. dxe5 {[%clk 0:02:47]}
18... dxe5 {[%clk 0:01:19.3]} 19. Qe2 {[%clk 0:02:28.4]} 19... f6 {[%clk
0:01:18.1]} 20. Qe4 {[%clk 0:02:18.6]} 20... O-O-O {[%clk 0:01:08.7]} 21. Ne3
{[%clk 0:02:18.5]} 21... Nb5 {[%clk 0:00:50.2]} 22. Nf5 {[%clk 0:02:17.2]} 22...
Qh7 {[%clk 0:00:44.7]} 23. Bc2 {[%clk 0:02:16.7]} 23... Kb8 {[%clk 0:00:38.2]}
24. a4 {[%clk 0:02:12.9]} 24... Na7 {[%clk 0:00:35.6]} 25. Rad1 {[%clk
0:01:57.8]} 25... Nc8 {[%clk 0:00:32]} 26. b4 {[%clk 0:01:55.8]} 26... Rdg8
{[%clk 0:00:24.4]} 27. c4 {[%clk 0:01:54.7]} 27... g3 {[%clk 0:00:24]} 28. fxg3
{[%clk 0:01:54.5]} 28... hxg3 {[%clk 0:00:24.5]} 29. h3 {[%clk 0:01:53.2]} 29...
Bxf5 {[%clk 0:00:23.9]} 30. Qxf5 {[%clk 0:01:52.7]} 30... Qxf5 {[%clk
0:00:24.6]} 31. Bxf5 {[%clk 0:01:52.6]} 31... Rg5 {[%clk 0:00:16.7]} 32. Be6
{[%clk 0:01:49.2]} 32... Rh4 {[%clk 0:00:17]} 33. c5 {[%clk 0:01:41.5]} 33...
Ne7 {[%clk 0:00:11.2]} 34. b5 {[%clk 0:01:34.3]} 34... axb5 {[%clk 0:00:05.8]}
35. axb5 {[%clk 0:01:35.2]} 35... Rh8 {[%clk 0:00:03.2]} 36. Rf1 {[%clk
0:01:30.4]} 36... f5 {[%clk 0:00:02.9]} 37. d6 {[%clk 0:01:28.1]} 37... cxd6
{[%clk 0:00:02.8]} 38. cxd6 {[%clk 0:01:29]} 38... Ng6 {[%clk 0:00:03.6]} 39.
Rf3 {[%clk 0:01:08.1]} 39... e4 {[%clk 0:00:02.6]} 40. Ra3 {[%clk 0:01:08]}
40... Nf4 {[%clk 0:00:02.2]} 41. Rda1 {[%clk 0:01:07.5]} 1-0